[Event "*** SCC Grand Prix: Titled Tuesday Blitz"]
[Site "Chess.com"]
[Date "2020.06.09"]
[Round "1"]
[White "MasterKroket"]
[Black "Shtembuliak"]
[Result "0-1"]
[WhiteElo "2438"]
[BlackElo "2853"]
[TimeControl "180+1"]
[EndTime "9:06:26 PDT"]
[Termination "Shtembuliak won by resignation"]

1. d4 {[%clk 0:03:00.9]} 1... g6 {[%clk 0:02:59.8]} 2. c4 {[%clk 0:02:59.9]}
2... Bg7 {[%clk 0:03:00]} 3. Nf3 {[%clk 0:02:59.3]} 3... d6 {[%clk 0:03:00.3]}
4. Nc3 {[%clk 0:02:58.6]} 4... Nc6 {[%clk 0:03:00.4]} 5. Bf4 {[%clk 0:02:45.1]}
5... Bg4 {[%clk 0:02:35.9]} 6. e3 {[%clk 0:02:39.3]} 6... e5 {[%clk 0:02:33.4]}
7. dxe5 {[%clk 0:02:38.8]} 7... dxe5 {[%clk 0:02:32.9]} 8. Qxd8+ {[%clk
0:02:37.8]} 8... Rxd8 {[%clk 0:02:32.2]} 9. Bg5 {[%clk 0:02:31.2]} 9... f6
{[%clk 0:02:15.6]} 10. Bh4 {[%clk 0:02:29.9]} 10... Nge7 {[%clk 0:02:14.5]} 11.
Be2 {[%clk 0:02:19]} 11... O-O {[%clk 0:02:09.8]} 12. h3 {[%clk 0:02:12.1]}
12... Be6 {[%clk 0:02:09.5]} 13. O-O {[%clk 0:02:06.2]} 13... h6 {[%clk
0:02:09.2]} 14. Rfd1 {[%clk 0:01:54.7]} 14... g5 {[%clk 0:02:07.6]} 15. Bg3
{[%clk 0:01:55]} 15... f5 {[%clk 0:02:08.3]} 16. Bh2 {[%clk 0:01:37.6]} 16... f4
{[%clk 0:01:58.4]} 17. Ne4 {[%clk 0:01:23.8]} 17... b6 {[%clk 0:01:53]} 18. c5
{[%clk 0:01:07.6]} 18... Nf5 {[%clk 0:01:49.1]} 19. exf4 {[%clk 0:01:04.9]}
19... exf4 {[%clk 0:01:47.6]} 20. Nexg5 {[%clk 0:00:57.6]} 20... hxg5 {[%clk
0:01:44]} 21. Nxg5 {[%clk 0:00:57.8]} 21... Rxd1+ {[%clk 0:01:33]} 22. Rxd1
{[%clk 0:00:55.3]} 22... Bxa2 {[%clk 0:01:33.4]} 23. cxb6 {[%clk 0:00:34.3]}
23... cxb6 {[%clk 0:01:29]} 24. Bf3 {[%clk 0:00:31.3]} 24... Nfd4 {[%clk
0:01:27]} 25. Be4 {[%clk 0:00:18.1]} 25... Bb3 {[%clk 0:01:25.1]} 26. Rd2 {[%clk
0:00:17.7]} 26... Re8 {[%clk 0:01:19.1]} 27. f3 {[%clk 0:00:17]} 27... Be5
{[%clk 0:01:10.6]} 28. h4 {[%clk 0:00:16.6]} 28... Kg7 {[%clk 0:01:08.5]} 29.
Kf2 {[%clk 0:00:13.8]} 29... a5 {[%clk 0:01:06.3]} 30. g4 {[%clk 0:00:13.3]}
30... fxg3+ {[%clk 0:01:04.6]} 31. Bxg3 {[%clk 0:00:14]} 31... Bxg3+ {[%clk
0:01:04.6]} 32. Kxg3 {[%clk 0:00:14.9]} 32... a4 {[%clk 0:01:01.5]} 33. Rd3
{[%clk 0:00:13.8]} 33... b5 {[%clk 0:00:59.4]} 34. h5 {[%clk 0:00:12.5]} 34...
Bc4 {[%clk 0:00:52]} 35. Re3 {[%clk 0:00:10.9]} 35... Nf5+ {[%clk 0:00:47.2]}
0-1

[Event "*** SCC Grand Prix: Titled Tuesday Blitz"]
[Site "Chess.com"]
[Date "2020.06.09"]
[Round "1"]
[White "ljuks68"]
[Black "kleinebeer98"]
[Result "0-1"]
[WhiteElo "2328"]
[BlackElo "2647"]
[TimeControl "180+1"]
[EndTime "9:06:26 PDT"]
[Termination "kleinebeer98 won on time"]

1. e4 {[%clk 0:03:00.2]} 1... c5 {[%clk 0:02:55.9]} 2. Nf3 {[%clk 0:02:59.7]}
2... e6 {[%clk 0:02:55.9]} 3. d4 {[%clk 0:02:59.1]} 3... cxd4 {[%clk 0:02:56.8]}
4. Nxd4 {[%clk 0:02:59.4]} 4... Nc6 {[%clk 0:02:57.7]} 5. Nc3 {[%clk 0:02:58.7]}
5... Qc7 {[%clk 0:02:57.3]} 6. Be3 {[%clk 0:02:58]} 6... a6 {[%clk 0:02:56.5]}
7. Qd2 {[%clk 0:02:57.5]} 7... Nf6 {[%clk 0:02:55.9]} 8. f3 {[%clk 0:02:57.2]}
8... b5 {[%clk 0:02:54.3]} 9. O-O-O {[%clk 0:02:57.5]} 9... Ne5 {[%clk
0:02:49.8]} 10. Bf4 {[%clk 0:02:54.7]} 10... b4 {[%clk 0:02:44.3]} 11. Nce2
{[%clk 0:02:39.9]} 11... Nh5 {[%clk 0:02:22.4]} 12. Bxe5 {[%clk 0:02:13.3]}
12... Qxe5 {[%clk 0:02:23.3]} 13. g4 {[%clk 0:02:03.1]} 13... Nf6 {[%clk
0:02:21.5]} 14. Bg2 {[%clk 0:01:58.7]} 14... g5 {[%clk 0:02:00]} 15. Rhf1 {[%clk
0:01:45]} 15... Bg7 {[%clk 0:01:47.7]} 16. Kb1 {[%clk 0:01:39.4]} 16... O-O
{[%clk 0:01:31.2]} 17. h4 {[%clk 0:01:38.8]} 17... h6 {[%clk 0:01:29.3]} 18.
hxg5 {[%clk 0:01:11.5]} 18... hxg5 {[%clk 0:01:30.2]} 19. Rh1 {[%clk 0:01:03.5]}
19... d5 {[%clk 0:01:24.5]} 20. f4 {[%clk 0:00:44.5]} 20... gxf4 {[%clk
0:01:22.7]} 21. Nxf4 {[%clk 0:00:37.9]} 21... Nxe4 {[%clk 0:01:12.3]} 22. Bxe4
{[%clk 0:00:35.4]} 22... dxe4 {[%clk 0:01:13.2]} 23. Nh5 {[%clk 0:00:33.4]}
23... Qxd4 {[%clk 0:01:11.8]} 24. Qxd4 {[%clk 0:00:33.1]} 24... Bxd4 {[%clk
0:01:12.7]} 25. Rxd4 {[%clk 0:00:33.2]} 25... f6 {[%clk 0:01:12.8]} 26. Ng3
{[%clk 0:00:28.5]} 26... e5 {[%clk 0:01:09.6]} 27. Rd6 {[%clk 0:00:24.4]} 27...
Bxg4 {[%clk 0:01:08]} 28. Nxe4 {[%clk 0:00:23.6]} 28... Bf3 {[%clk 0:01:07]} 29.
Rg1+ {[%clk 0:00:22.4]} 29... Kh8 {[%clk 0:00:56.3]} 30. Nxf6 {[%clk 0:00:21.3]}
30... Rad8 {[%clk 0:00:56.6]} 31. Rxa6 {[%clk 0:00:13.9]} 31... e4 {[%clk
0:00:56.5]} 32. Re6 {[%clk 0:00:03.5]} 32... e3 {[%clk 0:00:56.5]} 0-1

[Event "*** SCC Grand Prix: Titled Tuesday Blitz"]
[Site "Chess.com"]
[Date "2020.06.09"]
[Round "1"]
[White "Colchonero64"]
[Black "m_ezat"]
[Result "1-0"]
[WhiteElo "2987"]
[BlackElo "2466"]
[TimeControl "180+1"]
[EndTime "9:06:27 PDT"]
[Termination "Colchonero64 won by checkmate"]

1. e4 {[%clk 0:03:00.9]} 1... c6 {[%clk 0:02:59.2]} 2. d4 {[%clk 0:02:59.3]}
2... d5 {[%clk 0:02:59.5]} 3. e5 {[%clk 0:03:00]} 3... Bf5 {[%clk 0:02:58.4]} 4.
Bd3 {[%clk 0:03:00.3]} 4... Bxd3 {[%clk 0:02:56.6]} 5. Qxd3 {[%clk 0:03:00.9]}
5... e6 {[%clk 0:02:56.9]} 6. Ne2 {[%clk 0:02:57.9]} 6... Qa5+ {[%clk
0:02:55.7]} 7. Nd2 {[%clk 0:02:56]} 7... Qa6 {[%clk 0:02:55.7]} 8. Qg3 {[%clk
0:02:49.7]} 8... Ne7 {[%clk 0:02:55.3]} 9. c3 {[%clk 0:02:32.7]} 9... Nf5 {[%clk
0:02:53.9]} 10. Qh3 {[%clk 0:02:31.8]} 10... c5 {[%clk 0:02:53.5]} 11. g4 {[%clk
0:02:30.8]} 11... Ne7 {[%clk 0:02:53]} 12. dxc5 {[%clk 0:02:24.5]} 12... Nd7
{[%clk 0:02:52.1]} 13. Nb3 {[%clk 0:02:09.4]} 13... Nxe5 {[%clk 0:02:50]} 14.
Be3 {[%clk 0:02:00.4]} 14... Nd3+ {[%clk 0:02:46.3]} 15. Kf1 {[%clk 0:02:00]}
15... Nxb2 {[%clk 0:02:45.4]} 16. Nd4 {[%clk 0:01:53.8]} 16... Na4 {[%clk
0:02:29.7]} 17. Ke1 {[%clk 0:01:41]} 17... Nxc5 {[%clk 0:02:24.4]} 18. a4 {[%clk
0:01:34.8]} 18... Nxa4 {[%clk 0:02:05.2]} 19. Kd2 {[%clk 0:01:21.5]} 19... Nc6
{[%clk 0:01:46.6]} 20. Rhb1 {[%clk 0:01:17.2]} 20... Ne5 {[%clk 0:01:08.1]} 21.
Nb5 {[%clk 0:01:14]} 21... Rc8 {[%clk 0:01:04.3]} 22. Qg3 {[%clk 0:01:00]} 22...
Nc4+ {[%clk 0:00:40.7]} 23. Ke1 {[%clk 0:00:59.4]} 23... Nxe3 {[%clk 0:00:32.9]}
24. fxe3 {[%clk 0:00:59.4]} 24... Kd7 {[%clk 0:00:28.5]} 25. Qf4 {[%clk
0:00:57.6]} 25... f6 {[%clk 0:00:27.7]} 26. Rxa4 {[%clk 0:00:55.8]} 26... Qc6
{[%clk 0:00:26.4]} 27. Rxa7 {[%clk 0:00:55.2]} 27... Be7 {[%clk 0:00:22.1]} 28.
Ned4 {[%clk 0:00:53.3]} 28... Qc4 {[%clk 0:00:20.9]} 29. Rxb7+ {[%clk
0:00:52.2]} 29... Ke8 {[%clk 0:00:21]} 30. Nxe6 {[%clk 0:00:46.6]} 30... Kf7
{[%clk 0:00:18.9]} 31. Nd6+ {[%clk 0:00:45.1]} 31... Kg6 {[%clk 0:00:17.7]} 32.
Qf5+ {[%clk 0:00:44.2]} 32... Kh6 {[%clk 0:00:17.6]} 33. Qh5# {[%clk 0:00:44]}
1-0

[Event "*** SCC Grand Prix: Titled Tuesday Blitz"]
[Site "Chess.com"]
[Date "2020.06.09"]
[Round "1"]
[White "Paralinch"]
[Black "dey2580"]
[Result "1-0"]
[WhiteElo "2869"]
[BlackElo "2439"]
[TimeControl "180+1"]
[EndTime "9:06:27 PDT"]
[Termination "Paralinch won on time"]

1. e4 {[%clk 0:03:00.9]} 1... d5 {[%clk 0:02:59.7]} 2. exd5 {[%clk 0:03:00.9]}
2... Qxd5 {[%clk 0:02:59.8]} 3. Nc3 {[%clk 0:03:01]} 3... Qd6 {[%clk 0:02:59.6]}
4. d4 {[%clk 0:03:00.9]} 4... Nf6 {[%clk 0:02:59]} 5. Nf3 {[%clk 0:03:01]} 5...
a6 {[%clk 0:02:58.4]} 6. g3 {[%clk 0:02:59.8]} 6... Bg4 {[%clk 0:02:57.9]} 7.
Bg2 {[%clk 0:02:59.2]} 7... Nc6 {[%clk 0:02:57.5]} 8. h3 {[%clk 0:02:51.7]} 8...
Bh5 {[%clk 0:02:56.1]} 9. O-O {[%clk 0:02:50.9]} 9... O-O-O {[%clk 0:02:55.9]}
10. d5 {[%clk 0:02:24.9]} 10... Ne5 {[%clk 0:02:29.1]} 11. Bf4 {[%clk 0:02:14]}
11... Nxf3+ {[%clk 0:02:24.2]} 12. Bxf3 {[%clk 0:02:13.8]} 12... Bxf3 {[%clk
0:02:23.5]} 13. Qxf3 {[%clk 0:02:14.7]} 13... e5 {[%clk 0:02:23.6]} 14. Bg5
{[%clk 0:02:12]} 14... Be7 {[%clk 0:01:42.8]} 15. Rad1 {[%clk 0:02:11.3]} 15...
h6 {[%clk 0:01:15.6]} 16. Be3 {[%clk 0:02:11.4]} 16... Qd7 {[%clk 0:01:03.8]}
17. Kg2 {[%clk 0:02:10.4]} 17... g5 {[%clk 0:00:56.3]} 18. b3 {[%clk 0:01:32]}
18... g4 {[%clk 0:00:45.4]} 19. hxg4 {[%clk 0:01:32.9]} 19... Nxg4 {[%clk
0:00:45.6]} 20. d6 {[%clk 0:01:30]} 20... Bxd6 {[%clk 0:00:33.5]} 21. Nd5 {[%clk
0:01:29.5]} 21... f5 {[%clk 0:00:29.2]} 22. Bb6 {[%clk 0:01:24.1]} 22... Qe6
{[%clk 0:00:17.3]} 23. Qc3 {[%clk 0:01:17.1]} 23... Rh7 {[%clk 0:00:14.9]} 24.
Ba7 {[%clk 0:01:05.2]} 24... b5 {[%clk 0:00:04.9]} 25. Qc6 {[%clk 0:00:59.7]}
25... Rg8 {[%clk 0:00:02.6]} 26. Rd2 {[%clk 0:00:45.5]} 26... f4 {[%clk
0:00:02]} 27. Rfd1 {[%clk 0:00:43]} 27... f3+ {[%clk 0:00:02]} 28. Kg1 {[%clk
0:00:41.5]} 1-0

[Event "*** SCC Grand Prix: Titled Tuesday Blitz"]
[Site "Chess.com"]
[Date "2020.06.09"]
[Round "1"]
[White "ShahMatKanal"]
[Black "anastasiyakarlovych"]
[Result "1-0"]
[WhiteElo "2480"]
[BlackElo "1954"]
[TimeControl "180+1"]
[EndTime "9:06:27 PDT"]
[Termination "ShahMatKanal won by resignation"]

1. d4 {[%clk 0:03:00.9]} 1... d5 {[%clk 0:02:58.1]} 2. c4 {[%clk 0:02:55]} 2...
Bf5 {[%clk 0:02:57.8]} 3. Nc3 {[%clk 0:02:45.6]} 3... e6 {[%clk 0:02:56.6]} 4.
Nf3 {[%clk 0:02:32.8]} 4... c6 {[%clk 0:02:55.1]} 5. cxd5 {[%clk 0:02:29.5]}
5... exd5 {[%clk 0:02:54]} 6. Bf4 {[%clk 0:02:28.2]} 6... Nd7 {[%clk 0:02:51.9]}
7. e3 {[%clk 0:02:27.5]} 7... Ngf6 {[%clk 0:02:49.2]} 8. Bd3 {[%clk 0:02:27.1]}
8... Bg6 {[%clk 0:02:45.1]} 9. O-O {[%clk 0:02:25.4]} 9... Nh5 {[%clk
0:02:42.6]} 10. Bg5 {[%clk 0:02:20.4]} 10... Be7 {[%clk 0:02:26.5]} 11. Bxe7
{[%clk 0:02:20.2]} 11... Qxe7 {[%clk 0:02:26.6]} 12. a3 {[%clk 0:02:15.5]} 12...
Nhf6 {[%clk 0:02:20.6]} 13. Qc2 {[%clk 0:02:12.8]} 13... Bxd3 {[%clk 0:02:15.2]}
14. Qxd3 {[%clk 0:02:12.6]} 14... Ne4 {[%clk 0:02:15]} 15. Nd2 {[%clk
0:02:06.7]} 15... Ndf6 {[%clk 0:02:02.8]} 16. Rad1 {[%clk 0:01:54.1]} 16... O-O
{[%clk 0:02:01.6]} 17. Rfe1 {[%clk 0:01:46.3]} 17... Rfe8 {[%clk 0:02:00.4]} 18.
f3 {[%clk 0:01:39.9]} 18... Nd6 {[%clk 0:01:46.9]} 19. e4 {[%clk 0:01:34.9]}
19... dxe4 {[%clk 0:01:38.2]} 20. fxe4 {[%clk 0:01:35.1]} 20... Nh5 {[%clk
0:01:38.8]} 21. e5 {[%clk 0:01:26.5]} 21... Nc8 {[%clk 0:01:33.8]} 22. Qf3
{[%clk 0:01:20.5]} 22... g6 {[%clk 0:01:31.4]} 23. Nde4 {[%clk 0:01:10]} 23...
Kh8 {[%clk 0:01:14.9]} 24. Rf1 {[%clk 0:01:06.1]} 24... Rf8 {[%clk 0:01:06]} 25.
g4 {[%clk 0:01:04.8]} 25... Ng7 {[%clk 0:01:05.4]} 26. Nf6 {[%clk 0:01:03.5]}
26... Qe6 {[%clk 0:00:35.9]} 27. Nce4 {[%clk 0:00:55.4]} 27... Ne7 {[%clk
0:00:31.7]} 28. Nxh7 {[%clk 0:00:49.7]} 28... Nd5 {[%clk 0:00:24.5]} 29. Nhg5
{[%clk 0:00:45.1]} 29... Rad8 {[%clk 0:00:18.9]} 30. Qh3+ {[%clk 0:00:41.2]}
30... Nh5 {[%clk 0:00:18.9]} 31. Nxe6 {[%clk 0:00:41.1]} 1-0

[Event "*** SCC Grand Prix: Titled Tuesday Blitz"]
[Site "Chess.com"]
[Date "2020.06.09"]
[Round "1"]
[White "AlexSuv"]
[Black "Orest_Vovk"]
[Result "0-1"]
[WhiteElo "2770"]
[BlackElo "2452"]
[TimeControl "180+1"]
[EndTime "9:06:29 PDT"]
[Termination "Orest_Vovk won by resignation"]

1. d4 {[%clk 0:03:00.7]} 1... h6 {[%clk 0:02:59.3]} 2. c4 {[%clk 0:02:59.8]}
2... g5 {[%clk 0:02:58.7]} 3. Nc3 {[%clk 0:02:59.9]} 3... Bg7 {[%clk 0:02:59.1]}
4. e4 {[%clk 0:02:59.6]} 4... c5 {[%clk 0:02:59.1]} 5. d5 {[%clk 0:02:57.7]}
5... Bxc3+ {[%clk 0:02:58]} 6. bxc3 {[%clk 0:02:57.4]} 6... Qa5 {[%clk
0:02:58.5]} 7. Bd2 {[%clk 0:02:49.9]} 7... d6 {[%clk 0:02:55.2]} 8. h4 {[%clk
0:02:33.6]} 8... g4 {[%clk 0:02:52.4]} 9. Bd3 {[%clk 0:02:28.4]} 9... Nf6 {[%clk
0:02:49.8]} 10. Ne2 {[%clk 0:02:22.5]} 10... Nbd7 {[%clk 0:02:47.1]} 11. Ng3
{[%clk 0:02:22.3]} 11... Ne5 {[%clk 0:02:46.8]} 12. Be2 {[%clk 0:02:22.2]} 12...
Bd7 {[%clk 0:02:35.1]} 13. Qb3 {[%clk 0:02:20.4]} 13... O-O-O {[%clk 0:02:32.6]}
14. h5 {[%clk 0:02:14.4]} 14... Ba4 {[%clk 0:02:24.7]} 15. Qb1 {[%clk
0:01:28.8]} 15... Qb6 {[%clk 0:02:12.6]} 16. Qxb6 {[%clk 0:01:26.4]} 16... axb6
{[%clk 0:02:11.6]} 17. Nf5 {[%clk 0:01:27.3]} 17... Nxe4 {[%clk 0:01:55.3]} 18.
Nxe7+ {[%clk 0:00:59.8]} 18... Kd7 {[%clk 0:01:44.8]} 19. Nf5 {[%clk 0:01:00.7]}
19... Bc2 {[%clk 0:01:18.8]} 20. f4 {[%clk 0:00:45.7]} 20... gxf3 {[%clk
0:01:12]} 21. Ne3 {[%clk 0:00:33.3]} 21... f2+ {[%clk 0:01:07.1]} 22. Kf1 {[%clk
0:00:32.7]} 22... Nxd2+ {[%clk 0:01:07.1]} 23. Kxf2 {[%clk 0:00:32.4]} 23... Bh7
{[%clk 0:00:56.4]} 24. Bf3 {[%clk 0:00:27.5]} 24... Ndxf3 {[%clk 0:00:50.5]} 25.
gxf3 {[%clk 0:00:28.4]} 25... Nd3+ {[%clk 0:00:47.1]} 26. Ke2 {[%clk 0:00:26.1]}
26... Rde8 {[%clk 0:00:46.3]} 27. Rhg1 {[%clk 0:00:25.8]} 27... Ne5 {[%clk
0:00:39.6]} 28. Kf2 {[%clk 0:00:23.8]} 28... Rhg8 {[%clk 0:00:37.4]} 29. a4
{[%clk 0:00:18.3]} 29... Nd3+ {[%clk 0:00:33.7]} 30. Ke2 {[%clk 0:00:18.6]}
30... Nf4+ {[%clk 0:00:33.5]} 31. Kf2 {[%clk 0:00:18.6]} 31... Nh3+ {[%clk
0:00:33.1]} 0-1

[Event "*** SCC Grand Prix: Titled Tuesday Blitz"]
[Site "Chess.com"]
[Date "2020.06.09"]
[Round "1"]
[White "Nor1lsk"]
[Black "GuuBol"]
[Result "1-0"]
[WhiteElo "2579"]
[BlackElo "2236"]
[TimeControl "180+1"]
[EndTime "9:06:29 PDT"]
[Termination "Nor1lsk won by checkmate"]

1. e4 {[%clk 0:02:59.8]} 1... c5 {[%clk 0:02:58.5]} 2. d3 {[%clk 0:02:59.4]}
2... Nc6 {[%clk 0:02:56.4]} 3. g3 {[%clk 0:02:59.6]} 3... g6 {[%clk 0:02:50.8]}
4. Bg2 {[%clk 0:02:59.7]} 4... Bg7 {[%clk 0:02:51.2]} 5. f4 {[%clk 0:03:00.4]}
5... e6 {[%clk 0:02:48.8]} 6. Nf3 {[%clk 0:03:00.9]} 6... Nge7 {[%clk
0:02:48.3]} 7. O-O {[%clk 0:03:01.5]} 7... O-O {[%clk 0:02:47.3]} 8. c3 {[%clk
0:03:02.2]} 8... d5 {[%clk 0:02:46.8]} 9. Na3 {[%clk 0:03:01.7]} 9... Rb8 {[%clk
0:02:42.4]} 10. Nc2 {[%clk 0:03:01.1]} 10... b5 {[%clk 0:02:41.8]} 11. e5 {[%clk
0:03:01.4]} 11... d4 {[%clk 0:02:23.7]} 12. Ng5 {[%clk 0:02:49.8]} 12... Nd5
{[%clk 0:01:50.1]} 13. Ne4 {[%clk 0:02:49.4]} 13... Qb6 {[%clk 0:01:44.1]} 14.
c4 {[%clk 0:02:45.6]} 14... bxc4 {[%clk 0:01:43]} 15. dxc4 {[%clk 0:02:43.8]}
15... Nde7 {[%clk 0:01:22.5]} 16. Ne1 {[%clk 0:02:40.3]} 16... Kh8 {[%clk
0:01:04.3]} 17. Nd3 {[%clk 0:02:39.4]} 17... Nb4 {[%clk 0:00:49.6]} 18. Nexc5
{[%clk 0:02:30.5]} 18... Nf5 {[%clk 0:00:42.3]} 19. Re1 {[%clk 0:01:32.6]} 19...
Rd8 {[%clk 0:00:36.4]} 20. Bd2 {[%clk 0:00:56.5]} 20... Ne3 {[%clk 0:00:27.6]}
21. Rxe3 {[%clk 0:00:52.7]} 21... Nxd3 {[%clk 0:00:24]} 22. Rxd3 {[%clk
0:00:51.1]} 22... Qxc5 {[%clk 0:00:24.1]} 23. b3 {[%clk 0:00:49.8]} 23... Bb7
{[%clk 0:00:22.2]} 24. Bxb7 {[%clk 0:00:48]} 24... Rxb7 {[%clk 0:00:23.1]} 25.
Be1 {[%clk 0:00:48.3]} 25... a5 {[%clk 0:00:22.7]} 26. Bf2 {[%clk 0:00:48]}
26... Rbd7 {[%clk 0:00:22.1]} 27. Qd2 {[%clk 0:00:47.4]} 27... Qb6 {[%clk
0:00:21.9]} 28. Rd1 {[%clk 0:00:47.2]} 28... Bf8 {[%clk 0:00:21.9]} 29. Qe2
{[%clk 0:00:44.5]} 29... Bb4 {[%clk 0:00:20.7]} 30. g4 {[%clk 0:00:45.1]} 30...
Kg7 {[%clk 0:00:20]} 31. Bh4 {[%clk 0:00:45.2]} 31... Rc8 {[%clk 0:00:19.1]} 32.
Bf6+ {[%clk 0:00:45.2]} 32... Kg8 {[%clk 0:00:19.1]} 33. Qg2 {[%clk 0:00:45]}
33... a4 {[%clk 0:00:18.5]} 34. Qh3 {[%clk 0:00:44.8]} 34... axb3 {[%clk
0:00:16.7]} 35. Qxh7+ {[%clk 0:00:43.9]} 35... Kxh7 {[%clk 0:00:16.3]} 36. Rh3+
{[%clk 0:00:44.2]} 36... Kg8 {[%clk 0:00:17.2]} 37. Rh8# {[%clk 0:00:44.2]} 1-0

[Event "*** SCC Grand Prix: Titled Tuesday Blitz"]
[Site "Chess.com"]
[Date "2020.06.09"]
[Round "1"]
[White "mfwagnerpeixoto"]
[Black "Flawless_Fighter"]
[Result "0-1"]
[WhiteElo "2280"]
[BlackElo "2604"]
[TimeControl "180+1"]
[EndTime "9:06:33 PDT"]
[Termination "Flawless_Fighter won by resignation"]

1. e4 {[%clk 0:02:59.7]} 1... c6 {[%clk 0:02:59.5]} 2. Nf3 {[%clk 0:02:57.4]}
2... d5 {[%clk 0:03:00.4]} 3. Nc3 {[%clk 0:02:57.3]} 3... Bg4 {[%clk 0:02:59.4]}
4. h3 {[%clk 0:02:56.7]} 4... Bxf3 {[%clk 0:02:59.7]} 5. Qxf3 {[%clk 0:02:57.3]}
5... e6 {[%clk 0:03:00.4]} 6. g3 {[%clk 0:02:55.3]} 6... Nf6 {[%clk 0:03:00.3]}
7. Bg2 {[%clk 0:02:53.4]} 7... Be7 {[%clk 0:02:59.6]} 8. O-O {[%clk 0:02:51.9]}
8... O-O {[%clk 0:03:00.1]} 9. Qe2 {[%clk 0:02:51.3]} 9... Nbd7 {[%clk 0:02:56]}
10. d4 {[%clk 0:02:44.2]} 10... Rc8 {[%clk 0:02:47.1]} 11. e5 {[%clk 0:02:38.1]}
11... Ne8 {[%clk 0:02:46.8]} 12. Nd1 {[%clk 0:02:36.6]} 12... c5 {[%clk
0:02:46.4]} 13. c3 {[%clk 0:02:37.2]} 13... Qb6 {[%clk 0:02:43.9]} 14. Be3
{[%clk 0:02:30.5]} 14... g6 {[%clk 0:02:35.5]} 15. f4 {[%clk 0:02:28.1]} 15...
Ng7 {[%clk 0:02:35]} 16. g4 {[%clk 0:02:27.3]} 16... Nb8 {[%clk 0:02:29.1]} 17.
dxc5 {[%clk 0:02:14.6]} 17... Bxc5 {[%clk 0:02:28.6]} 18. Bxc5 {[%clk
0:02:10.3]} 18... Qxc5+ {[%clk 0:02:26.6]} 19. Qe3 {[%clk 0:02:08.1]} 19... Qa5
{[%clk 0:02:19]} 20. a3 {[%clk 0:02:02.8]} 20... Nc6 {[%clk 0:02:18.8]} 21. Nf2
{[%clk 0:01:53.9]} 21... Rfd8 {[%clk 0:02:18]} 22. Kh1 {[%clk 0:01:49.6]} 22...
a6 {[%clk 0:02:00.2]} 23. Rad1 {[%clk 0:01:41.1]} 23... Qc7 {[%clk 0:02:00.4]}
24. Nd3 {[%clk 0:01:38.3]} 24... Na5 {[%clk 0:01:57.1]} 25. f5 {[%clk
0:01:27.1]} 25... Nc4 {[%clk 0:01:51.1]} 26. Qh6 {[%clk 0:01:25.9]} 26... Nxe5
{[%clk 0:01:15.1]} 27. Nf4 {[%clk 0:01:04.3]} 27... gxf5 {[%clk 0:01:01.8]} 28.
Nh5 {[%clk 0:00:53.5]} 28... Nxh5 {[%clk 0:00:54.5]} 29. gxh5 {[%clk 0:00:53.7]}
29... Qe7 {[%clk 0:00:50.4]} 30. Bxd5 {[%clk 0:00:42.3]} 30... Kh8 {[%clk
0:00:49.5]} 31. Rg1 {[%clk 0:00:33.2]} 31... Rg8 {[%clk 0:00:48.3]} 32. Bb3
{[%clk 0:00:31.3]} 32... Qh4 {[%clk 0:00:44.7]} 33. Rd3 {[%clk 0:00:25.7]} 33...
Rxg1+ {[%clk 0:00:42.7]} 34. Kxg1 {[%clk 0:00:26.6]} 34... Rg8+ {[%clk 0:00:43]}
35. Kf1 {[%clk 0:00:26.9]} 35... Nxd3 {[%clk 0:00:33.1]} 0-1

[Event "*** SCC Grand Prix: Titled Tuesday Blitz"]
[Site "Chess.com"]
[Date "2020.06.09"]
[Round "1"]
[White "Thipsay"]
[Black "Kilpkonn"]
[Result "0-1"]
[WhiteElo "2460"]
[BlackElo "2039"]
[TimeControl "180+1"]
[EndTime "9:06:35 PDT"]
[Termination "Kilpkonn won by resignation"]

1. e4 {[%clk 0:03:00.9]} 1... d5 {[%clk 0:02:56.5]} 2. exd5 {[%clk 0:03:00.1]}
2... Qxd5 {[%clk 0:02:55.5]} 3. Nc3 {[%clk 0:02:59.9]} 3... Qa5 {[%clk 0:02:55]}
4. d4 {[%clk 0:03:00]} 4... Nf6 {[%clk 0:02:53.8]} 5. Nf3 {[%clk 0:02:59.9]}
5... Bg4 {[%clk 0:02:53]} 6. h3 {[%clk 0:02:58.8]} 6... Bh5 {[%clk 0:02:48.4]}
7. Bc4 {[%clk 0:02:57]} 7... e6 {[%clk 0:02:42.4]} 8. Bd2 {[%clk 0:02:53.4]}
8... Qb6 {[%clk 0:02:38.1]} 9. g4 {[%clk 0:02:51.3]} 9... Bg6 {[%clk 0:02:36.7]}
10. Bb3 {[%clk 0:02:48.4]} 10... Bb4 {[%clk 0:02:00.8]} 11. Qe2 {[%clk
0:02:45.4]} 11... Nc6 {[%clk 0:01:49.5]} 12. a3 {[%clk 0:02:40.5]} 12... Bxc3
{[%clk 0:01:45.5]} 13. bxc3 {[%clk 0:02:40.4]} 13... O-O-O {[%clk 0:01:39.2]}
14. O-O {[%clk 0:02:37.7]} 14... Ne4 {[%clk 0:01:34.9]} 15. Rab1 {[%clk
0:02:36.5]} 15... Qa5 {[%clk 0:01:31.2]} 16. c4 {[%clk 0:02:26.5]} 16... Nxd2
{[%clk 0:01:28.9]} 17. Qxd2 {[%clk 0:02:24.1]} 17... Qxd2 {[%clk 0:01:24.9]} 18.
Nxd2 {[%clk 0:02:23.8]} 18... Nxd4 {[%clk 0:01:22.6]} 19. Rfe1 {[%clk
0:02:16.9]} 19... Nxc2 {[%clk 0:01:13.5]} 20. Bxc2 {[%clk 0:02:10.6]} 20... Bxc2
{[%clk 0:01:11.3]} 21. Ne4 {[%clk 0:02:02.7]} 21... Bxb1 {[%clk 0:01:08.7]} 22.
Rxb1 {[%clk 0:02:02.8]} 22... Rd4 {[%clk 0:01:07.8]} 23. Ng5 {[%clk 0:02:01.7]}
23... Rxc4 {[%clk 0:01:04.2]} 24. Nxf7 {[%clk 0:02:00.9]} 24... Rf8 {[%clk
0:01:03.6]} 25. Ne5 {[%clk 0:02:00.9]} 25... Rc3 {[%clk 0:01:00.6]} 26. Kg2
{[%clk 0:01:59.6]} 26... Rxa3 {[%clk 0:00:59.4]} 27. Rc1 {[%clk 0:01:58.5]}
27... a5 {[%clk 0:00:57.1]} 28. Rd1 {[%clk 0:01:56.8]} 28... a4 {[%clk
0:00:55.7]} 29. Rd7 {[%clk 0:01:48.2]} 29... Ra2 {[%clk 0:00:52.3]} 30. Rxg7
{[%clk 0:01:48.1]} 30... Rfxf2+ {[%clk 0:00:48.7]} 31. Kg3 {[%clk 0:01:48.1]}
31... b6 {[%clk 0:00:46.2]} 32. Nc6 {[%clk 0:01:43.5]} 32... Rfc2 {[%clk
0:00:42.8]} 33. Nb4 {[%clk 0:01:41.9]} 33... Rc3+ {[%clk 0:00:41.1]} 34. Kh4
{[%clk 0:01:41.6]} 34... Raa3 {[%clk 0:00:40.1]} 35. Kg5 {[%clk 0:01:41.1]}
35... Rxh3 {[%clk 0:00:39.3]} 36. Na6 {[%clk 0:01:39.9]} 36... Rac3 {[%clk
0:00:37.3]} 37. Nb4 {[%clk 0:01:36.9]} 37... a3 {[%clk 0:00:36]} 38. Kf6 {[%clk
0:01:35.8]} 38... Rc4 {[%clk 0:00:33.4]} 39. Na2 {[%clk 0:01:30.7]} 39... Rh2
{[%clk 0:00:31.5]} 40. g5 {[%clk 0:01:29.4]} 40... Rxa2 {[%clk 0:00:29.6]} 41.
Rxh7 {[%clk 0:01:29.3]} 41... Rf2+ {[%clk 0:00:28.7]} 42. Ke7 {[%clk 0:01:28.8]}
42... Rg4 {[%clk 0:00:27]} 43. Rh1 {[%clk 0:01:25.9]} 43... a2 {[%clk 0:00:26]}
44. Ra1 {[%clk 0:01:25.6]} 44... Rxg5 {[%clk 0:00:24.6]} 45. Kxe6 {[%clk
0:01:25.1]} 45... Rb5 {[%clk 0:00:23.3]} 0-1